bitfinex-derivatives/quotes_SOLF0:USTF0_20251023
["timestamp","ask_amount","ask_price","bid_price","bid_amount"]
[1761236684667,1.75478711,191.23,191.16,7.3269]
[1761236685363,0.98,191.2,191.16,7.3269]
[1761236685558,1.75478711,191.19,191.16,7.3269]
[1761236685855,2.73478711,191.19,191.14,7.3274]
[1761236686262,2.73478711,191.19,191.15,2.62]
[1761236686453,1.75478711,191.17,191.13,2.62]
[1761236686650,1.75478711,191.15,191.12,4.7079]
[1761236686856,1.75478711,191.15,191.12,7.3279]
[1761236687760,1.75478711,191.15,191.13,2.62]
[1761236688657,1.75478711,191.15,191.11,2.62]
[1761236688863,2.73478711,191.15,191.11,2.62]
[1761236689064,0.98,191.15,191.07,2.62]
[1761236689367,1.75478711,191.14,191.07,2.62]
[1761236689762,1.75478711,191.14,191.1,2.62]
[1761236690064,0.98,191.15,191.1,2.62]
[1761236690968,1.75478711,191.16,191.11,2.62]
[1761236691266,2.73478711,191.16,191.11,2.62]
[1761236691665,0.98,191.15,191.11,2.62]
[1761236692058,2.73478711,191.14,191.08,7.3289]
[1761236692464,2.73478711,191.14,191.08,2.62]
[1761236694266,0.98,191.13,191.08,2.62]
[1761236697270,4.7074,191.15,191.08,2.62]
[1761236697667,7.44168711,191.17,191.1,2.62]
[1761236698060,0.98,191.16,191.1,2.62]
[1761236698269,0.98,191.14,191.1,2.62]
[1761236698869,0.98,191.14,191.08,4.7088]
[1761236699367,0.98,191.14,191.08,7.5588]
[1761236699764,0.98,191.14,191.08,2.85]
[1761236700367,2.73765965,191.15,191.05,2.85]
[1761236700368,4.7081,191.12,191.05,2.85]
[1761236700572,0.98,191.11,191.05,2.85]
[1761236703966,4.7081,191.12,191.05,2.73765965]
[1761236704177,4.7081,191.12,191.06,2.85]
[1761236705479,0.98,191.18,191.09,2.85]
[1761236706173,0.98,191.14,191.07,2.73765965]
[1761236706576,0.98,191.14,191.07,5.58765965]
[1761236707080,0.98,191.14,191.07,2.73765965]
[1761236707376,0.98,191.14,191.08,2.85]
[1761236707778,0.98,191.17,191.08,2.85]
[1761236708478,0.98,191.15,191.09,7.5585]
[1761236709574,0.98,191.14,191.06,2.85]
[1761236710678,0.98,191.14,191.09,2.85]
[1761236711276,0.98,191.14,191.09,7.5586]
[1761236711474,0.98,191.14,191.1,2.85]
[1761236711876,0.98,191.14,191.07,4.7091]
[1761236712076,0.98,191.14,191.07,7.5591]
[1761236712374,0.98,191.14,191.08,2.85]
[1761236713882,4.7074,191.15,191.08,2.85]
[1761236714084,4.7074,191.15,191.09,2.85]
[1761236714285,0.98,191.19,191.11,2.73765965]
[1761236714582,0.98,191.22,191.15,2.85]
[1761236714884,0.98,191.22,191.15,7.5571]
[1761236715277,0.98,191.22,191.16,4.7068]
[1761236715478,0.98,191.22,191.16,7.5568]
[1761236715781,0.98,191.22,191.16,2.85]
[1761236716475,0.98,191.22,191.17,4.7066]
[1761236716675,4.7046,191.26,191.18,2.85]
[1761236716876,5.6846,191.26,191.18,2.85]
[1761236717180,4.7046,191.26,191.18,2.85]
[1761236717483,0.98,191.25,191.18,2.85]
[1761236718086,0.98,191.25,191.18,7.5564]
[1761236718383,0.98,191.24,191.1,6.44833228]
[1761236718586,0.98,191.24,191.17,4.7066]
[1761236719888,0.98,191.24,191.18,4.7063]
[1761236720587,0.98,191.24,191.21,2.85]
[1761236721486,80.23412654,191.27,191.21,2.85]
[1761236721690,81.21412654,191.27,191.21,2.85]
[1761236722290,80.23412654,191.27,191.21,2.85]
[1761236722490,0.98,191.26,191.21,2.85]
[1761236723787,75.52982654,191.27,191.22,2.85]
[1761236724490,43.7,191.29,191.23,2.85]
[1761236725087,0.98,191.28,191.23,2.85]
[1761236725393,0.98,191.28,191.22,4.7054]
[1761236726393,0.98,191.27,191.2,7.5559]
[1761236727288,5.6844,191.27,191.2,7.5559]
[1761236727490,2.73765965,191.27,191.2,2.85]
[1761236727691,0.98,191.26,191.2,2.85]
[1761236728092,0.98,191.26,191.17,4.7065]
[1761236728093,0.98,191.3,191.21,2.71]
[1761236728294,46.41765965,191.32,191.21,2.71]
[1761236728489,43.68,191.32,191.23,2.71]
[1761236728690,43.68,191.32,191.24,2.65]
[1761236728888,44.66,191.32,191.24,2.65]
[1761236729088,47.39765965,191.32,191.24,2.65]
[1761236729292,44.66,191.32,191.24,2.65]
[1761236729681,48.3832,191.32,191.24,2.65]
[1761236729888,0.98,191.31,191.24,2.65]
[1761236730389,5.6835,191.31,191.24,2.65]
[1761236730588,4.7035,191.31,191.24,2.65]
[1761236730897,0.98,191.29,191.18,2.65]
[1761236731395,0.98,191.33,191.24,2.65]
[1761236732395,0.98,191.33,191.26,2.65]
[1761236732891,0.98,191.33,191.28,4.7039]
[1761236733193,0.98,191.33,191.26,2.65]
[1761236733194,0.98,191.37,191.29,2.65]
[1761236733391,0.98,191.37,191.3,2.65]
[1761236733794,119.26018844,191.38,191.3,2.65]
[1761236733987,119.26018844,191.38,191.3,7.3534]
[1761236734187,8.41895965,191.4,191.31,2.65]
[1761236734388,0.98,191.39,191.31,2.65]
[1761236734589,4.7015,191.39,191.31,2.65]
[1761236734800,0.98,191.36,191.27,4.7041]
[1761236734987,0.98,191.36,191.27,7.3541]
[1761236735592,3.71765965,191.36,191.27,4.7041]
[1761236735900,3.71765965,191.36,191.28,2.65]
[1761236736095,8.41995965,191.36,191.28,2.65]
[1761236737703,43.68,191.41,191.24,2.65]
[1761236737704,0.98,191.32,191.24,2.65]
[1761236738897,0.98,191.32,191.24,7.3548]
[1761236739097,0.98,191.32,191.25,2.65]
[1761236739798,0.98,191.32,191.25,7.3546]
[1761236739997,2.73765965,191.33,191.26,2.65]
[1761236740502,4.7027,191.34,191.27,7.3542]
[1761236740703,4.7027,191.34,191.28,2.65]
[1761236740896,47.37765965,191.36,191.28,2.65]
[1761236741097,3.71765965,191.36,191.3,4.7034]
[1761236741701,8.41995965,191.36,191.28,7.3539]
[1761236746793,8.41995965,191.36,191.29,2.65]
[1761236748399,8.41995965,191.36,191.29,7.3537]
[1761236748593,3.71765965,191.36,191.3,2.65]
[1761236748791,2.73765965,191.36,191.3,2.65]
[1761236749802,2.73765965,191.36,191.3,7.3534]
[1761236749997,7.43955965,191.37,191.3,7.3534]
[1761236750198,8.41955965,191.37,191.3,7.3534]
[1761236750708,8.41955965,191.37,191.3,4.7034]
[1761236750709,3.71765965,191.34,191.3,4.7034]
[1761236751403,3.71765965,191.34,191.3,7.3534]
[1761236754508,3.71765965,191.34,191.3,2.65]
[1761236755902,4.7022,191.36,191.3,2.65]
[1761236756097,2.73765965,191.37,191.3,2.65]
[1761236756303,0.98,191.43,191.31,2.73765965]
[1761236756510,0.98,191.43,191.32,2.65]
[1761236756808,5.6805,191.43,191.36,2.65]
[1761236757009,2.73765965,191.44,191.36,2.65]
[1761236757303,2.73765965,191.43,191.36,2.65]
[1761236757506,3.71765965,191.43,191.36,2.65]
[1761236757904,0.98,191.42,191.36,2.65]
[1761236758808,0.98,191.42,191.29,2.73765965]
[1761236758809,0.98,191.39,191.29,2.8]
[1761236759410,2.73765965,191.4,191.31,4.7033]
[1761236759411,5.6817,191.38,191.31,4.7033]
[1761236760109,7.43955965,191.37,191.29,7.5038]
[1761236760315,8.41955965,191.37,191.3,2.8]
[1761236760713,1.74857998,191.34,191.3,2.8]
[1761236760906,1.74857998,191.32,191.25,2.8]
[1761236761107,2.72857998,191.29,191.25,2.8]
[1761236761309,2.72857998,191.29,191.22,2.8]
[1761236761710,1.74857998,191.27,191.22,2.8]
[1761236761916,1.74857998,191.25,191.18,2.8]
[1761236762118,1.74857998,191.23,191.18,2.8]
[1761236762715,0.98,191.27,191.18,2.8]
[1761236763216,0.98,191.27,191.19,2.8]
[1761236764718,0.98,191.26,191.19,2.8]
[1761236765204,5.6847,191.26,191.19,2.8]
[1761236765808,4.705,191.25,191.19,2.8]
[1761236766014,0.98,191.24,191.19,2.8]
[1761236768315,0.98,191.22,191.14,2.8]
[1761236769915,0.98,191.21,191.14,2.8]
[1761236770313,0.98,191.21,191.11,2.8]
[1761236770517,0.98,191.2,191.07,2.8]
[1761236770909,4.01131,191.18,191.07,2.8]
[1761236771115,4.7073,191.15,191.07,2.8]
[1761236771513,5.6873,191.15,191.07,2.8]
[1761236771719,0.98,191.13,191.04,2.8]
[1761236772824,5.688,191.12,191.04,2.8]
[1761236775122,4.85309483,191.23,191.04,2.8]
[1761236775123,0.98,191.16,191.04,6.81131]
[1761236775317,0.98,191.23,191.11,2.8]
[1761236775520,4.7053,191.23,191.12,2.8]
[1761236775712,0.98,191.22,191.12,2.8]
[1761236776815,4.7064,191.19,191.12,2.8]
[1761236778322,0.98,191.22,191.13,2.8]
[1761236778323,4.7058,191.21,191.13,2.8]
[1761236778929,0.98,191.22,191.14,2.8]
[1761236779426,0.98,191.21,191.12,4.7078]
[1761236781028,5.6859,191.21,191.12,4.7078]
[1761236781731,4.7059,191.21,191.12,4.7078]
[1761236781935,0.98,191.2,191.12,7.5078]
[1761236782119,0.98,191.2,191.14,2.8]
[1761236782325,5.6853,191.23,191.14,2.8]
[1761236782525,0.98,191.22,191.14,2.8]
[1761236782833,0.98,191.2,191.08,2.8]
[1761236785037,0.98,191.2,191.14,4.7073]
[1761236787441,1.75111162,191.21,191.15,2.79]
[1761236787938,6.45591162,191.25,191.18,2.79]
[1761236788434,7.43591162,191.25,191.18,2.79]
[1761236789037,7.43591162,191.25,191.18,7.4963]
[1761236790039,2.73111162,191.21,191.16,7.4569]
[1761236790331,0.98,191.2,191.13,1.75111162]
[1761236790532,0.98,191.2,191.13,4.50111162]
[1761236790927,0.98,191.2,191.16,2.75]
[1761236791738,1.75111162,191.23,191.17,2.75]
[1761236792142,1.75111162,191.23,191.17,7.4566]
[1761236792436,1.75111162,191.25,191.18,2.75]
[1761236793139,4.7046,191.26,191.18,2.75]
[1761236793354,4.7046,191.26,191.2,2.75]
[1761236794441,5.6846,191.26,191.2,2.75]
[1761236794844,0.98,191.31,191.22,2.75]
[1761236795042,0.98,191.31,191.14,9.4149]
[1761236795043,1.75111162,191.3,191.24,2.75]
[1761236795244,1.75111162,191.32,191.24,7.4549]
[1761236795440,2.73111162,191.32,191.24,4.50111162]
[1761236795742,2.73111162,191.32,191.25,2.75]
[1761236796542,7.43431162,191.32,191.26,4.7044]
[1761236796739,5.6832,191.32,191.26,4.7044]
[1761236796942,5.6832,191.32,191.25,2.75]
[1761236797938,5.6832,191.32,191.25,7.4546]
[1761236798455,5.6832,191.32,191.25,2.75]
[1761236798637,0.98,191.32,191.25,2.75]
[1761236799239,4.7021,191.36,191.29,2.75]
[1761236800943,4.98849398,191.37,191.3,2.75]
[1761236801343,0.98,191.36,191.3,2.75]
[1761236802450,8.71049398,191.37,191.31,2.75]
[1761236802951,4.702,191.37,191.31,2.75]
[1761236803146,5.682,191.37,191.31,2.75]
[1761236803352,0.98,191.36,191.23,2.75]
[1761236803744,4.702,191.37,191.3,4.7033]
[1761236803949,4.702,191.37,191.31,2.75]
[1761236804641,43.68,191.38,191.31,2.75]
[1761236804845,0.98,191.36,191.27,4.7041]
[1761236805246,0.98,191.36,191.27,7.4541]
[1761236805447,5.6822,191.36,191.28,7.4538]
[1761236805753,0.98,191.35,191.28,7.4538]
[1761236806943,5.6825,191.35,191.28,7.4538]
[1761236807349,0.98,191.34,191.28,7.4538]
[1761236809054,5.6827,191.34,191.28,7.4538]
[1761236810749,0.98,191.34,191.28,7.4538]
[1761236811354,43.66,191.36,191.29,2.75]
[1761236811955,4.7024,191.35,191.29,2.75]
[1761236813653,0.98,191.33,191.28,4.7038]
[1761236813859,0.98,191.33,191.26,2.75]
[1761236814057,0.98,191.33,191.25,7.29]
[1761236814058,0.98,191.32,191.25,7.29]
[1761236814258,0.98,191.29,191.25,10.04]
[1761236814457,4.7035,191.3,191.26,2.75]
[1761236815056,48.3635,191.3,191.26,2.75]
[1761236817269,49.3435,191.3,191.26,2.75]
[1761236818670,1.74958293,191.29,191.26,2.75]
[1761236820458,46.38958293,191.29,191.25,9.95]
[1761236820765,1.74958293,191.27,191.25,9.95]
[1761236820968,1.74958293,191.27,191.25,7.29]
[1761236821271,0.98,191.26,191.22,2.66]
[1761236821466,1.74958293,191.25,191.22,2.66]
[1761236822169,6.45398293,191.27,191.22,2.66]
[1761236822471,7.43398293,191.27,191.22,2.66]
[1761236822665,5.6844,191.27,191.22,2.66]
[1761236823374,5.6844,191.27,191.22,7.3654]
[1761236823581,43.66,191.28,191.23,2.66]
[1761236823777,0.98,191.31,191.23,2.66]
[1761236823984,43.66,191.3,191.23,2.66]
[1761236824478,0.98,191.38,191.24,2.66]
[1761236824670,2.73447733,191.35,191.24,2.66]
[1761236824874,28.2,191.36,191.25,2.73447733]
[1761236825271,3.71447733,191.4,191.29,2.66]
[1761236825577,0.98,191.4,191.29,2.66]
[1761236825769,44.64,191.4,191.34,4.7024]
[1761236825974,44.64,191.4,191.34,2.66]
[1761236825975,43.66,191.4,191.34,2.66]
[1761236826168,43.66,191.42,191.34,2.66]
[1761236826579,43.66,191.42,191.36,4.7018]
[1761236826874,44.64,191.42,191.34,2.66]
[1761236827273,44.64,191.42,191.36,4.7019]
[1761236827469,44.64,191.42,191.36,2.66]
[1761236827874,0.98,191.42,191.36,2.66]
[1761236828081,44.64,191.42,191.36,2.66]
[1761236828581,43.66,191.43,191.36,2.66]
[1761236828781,43.66,191.44,191.36,2.66]
[1761236829484,43.66,191.44,191.4,2.66]
[1761236829673,3.71447733,191.46,191.4,2.66]
[1761236829983,43.66,191.45,191.4,2.66]
[1761236830185,44.64,191.45,191.4,2.66]
[1761236833388,44.64,191.45,191.4,7.3609]
[1761236834288,43.66,191.45,191.42,2.66]
[1761236834489,44.64,191.45,191.41,4.7006]
[1761236835885,0.98,191.44,191.37,4.7018]
[1761236836089,0.98,191.44,191.35,2.66]
[1761236837082,0.98,191.44,191.38,4.7013]
[1761236837794,46.39447733,191.45,191.39,2.66]
[1761236838089,46.39447733,191.45,191.38,4.7013]
[1761236838090,0.98,191.43,191.37,2.66]
[1761236838294,43.64,191.44,191.37,2.66]
[1761236838696,43.64,191.44,191.38,7.3614]
[1761236840292,44.62,191.44,191.39,7.3611]
[1761236841894,0.98,191.43,191.39,7.3611]
[1761236842994,43.64,191.44,191.41,2.66]
[1761236843296,44.62,191.44,191.4,7.3609]
[1761236843594,43.64,191.44,191.41,2.66]
[1761236844189,43.62,191.45,191.41,2.66]
[1761236844397,44.6,191.45,191.41,7.3607]
[1761236845198,0.98,191.44,191.4,2.66]
[1761236846298,43.62,191.45,191.41,2.69]
[1761236846503,43.62,191.46,191.41,2.69]
[1761236846798,0.97,191.45,191.41,2.69]
[1761236847000,0.97,191.45,191.41,7.3907]
[1761236848896,0.97,191.45,191.39,4.7012]
[1761236850302,0.98,191.44,191.39,4.7012]
[1761236850601,0.98,191.43,191.39,4.7012]
[1761236850896,44.6,191.42,191.39,4.7012]
[1761236851095,0.97,191.41,191.37,4.7017]
[1761236851298,0.97,191.41,191.34,2.79]
[1761236851499,44.59,191.41,191.34,2.79]
[1761236851801,44.59,191.41,191.37,2.79]
[1761236852001,43.62,191.41,191.37,2.79]
[1761236854602,43.62,191.41,191.38,2.79]
[1761236856605,44.59,191.42,191.38,2.79]
[1761236856804,43.62,191.42,191.38,2.79]
[1761236857201,43.62,191.42,191.38,7.4914]
[1761236857399,43.62,191.42,191.39,2.79]
[1761236858003,44.59,191.42,191.38,7.4914]
[1761236859103,2.73447733,191.39,191.3,2.79]
[1761236859296,44.59,191.38,191.3,2.79]
[1761236859498,2.73447733,191.36,191.3,2.79]
[1761236859695,0.97,191.35,191.3,2.79]
[1761236859905,44.59,191.34,191.3,2.79]
[1761236865211,0.97,191.33,191.27,4.7042]
[1761236865407,3.70447733,191.33,191.27,4.7042]
[1761236865604,3.70447733,191.33,191.26,2.79]
[1761236866698,3.70447733,191.33,191.27,11.04]
[1761236867099,3.70447733,191.33,191.29,2.79]
[1761236868207,2.73447733,191.33,191.3,2.79]
[1761236868506,43.62,191.34,191.3,2.79]
[1761236868710,44.59,191.34,191.3,2.79]
[1761236870011,44.59,191.34,191.3,7.4934]
[1761236870312,44.59,191.34,191.31,2.79]
[1761236871106,44.59,191.34,191.3,4.7034]
[1761236871417,44.59,191.34,191.3,7.4934]
[1761236872806,3.70447733,191.39,191.28,2.79]
[1761236873014,3.70447733,191.39,191.29,2.79]
[1761236873317,3.70447733,191.39,191.33,4.7027]
[1761236873510,0.97,191.38,191.33,4.7027]
[1761236874012,0.97,191.38,191.33,7.4927]
[1761236874908,0.97,191.38,191.27,17.43280961]
[1761236874909,0.97,191.38,191.31,4.7031]
[1761236875105,0.97,191.38,191.3,2.79]
[1761236876107,0.97,191.36,191.3,2.79]
[1761236876309,43.62,191.35,191.3,2.79]
[1761236876505,0.97,191.34,191.27,8.25]
[1761236876812,0.97,191.32,191.27,8.25]
[1761236877604,4.7035,191.31,191.27,8.25]
[1761236877808,0.97,191.29,191.27,5.25]
[1761236878017,47.32447733,191.28,191.27,5.25]
[1761236878313,0.97,191.27,191.19,7.4961]
[1761236878715,0.97,191.27,191.19,2.79]
[1761236879518,0.97,191.27,191.2,4.7058]
[1761236880516,0.97,191.27,191.19,2.79]
[1761236881219,0.97,191.26,191.19,2.79]
[1761236882311,0.97,191.25,191.17,6.84]
[1761236882509,0.97,191.24,191.17,6.84]
[1761236882710,1.75105474,191.2,191.17,6.84]
[1761236882907,1.75105474,191.18,191.17,6.84]
[1761236883107,2.72105474,191.18,191.12,2.71]
[1761236883718,1.75105474,191.18,191.12,2.71]
[1761236883924,1.75105474,191.18,191.09,2.71]
[1761236883925,0.97,191.17,191.09,2.71]
[1761236884420,0.97,191.14,191.06,1.75105474]
[1761236884721,2.72105474,191.14,191.06,4.46105474]
[1761236885418,0.97,191.13,191.06,2.71]
[1761236885723,0.97,191.11,191.04,7.22]
[1761236886017,0.97,191.07,191.04,7.22]
[1761236886321,0.97,191.05,191.04,7.22]
[1761236886710,0.97,191.05,190.98,2.71]
[1761236887120,43.64,191.07,191.0,2.71]
[1761236887823,44.61,191.07,191.0,2.71]
[1761236888123,0.97,191.05,190.97,4.46105474]
[1761236888319,0.97,191.05,190.97,1.75105474]
[1761236888620,0.97,191.05,190.98,2.71]
[1761236889218,0.97,191.05,190.98,4.46105474]
[1761236889920,0.97,191.05,190.98,9.17245474]
[1761236890125,43.66,191.06,191.0,4.46105474]
[1761236890522,43.66,191.06,191.01,2.71]
[1761236890833,45.41105474,191.08,191.01,2.71]
[1761236891016,46.38105474,191.08,191.01,2.71]
[1761236891421,1.75105474,191.06,191.01,2.71]
[1761236891626,2.72105474,191.06,191.01,2.71]
[1761236892019,0.97,191.11,191.01,2.71]
[1761236892226,0.97,191.11,190.95,8.08]
[1761236892227,10.16,191.1,191.06,2.71]
[1761236892525,1.75105474,191.15,191.08,2.71]
[1761236893026,41.5,191.17,191.08,2.71]
[1761236893027,41.5,191.17,191.1,4.7084]
[1761236893228,44.63,191.18,191.11,4.46105474]
[1761236893427,46.38105474,191.18,191.11,4.46105474]
[1761236893831,2.72105474,191.18,191.11,9.16895474]
[1761236894024,0.97,191.18,191.11,9.16895474]
[1761236895130,0.97,191.18,191.14,2.71]
[1761236895921,1.75105474,191.2,191.14,2.71]
[1761236896530,1.75105474,191.2,191.14,7.4172]
[1761236897528,1.75105474,191.2,191.14,2.71]
[1761236897828,0.97,191.19,191.04,2.71]
[1761236898019,1.75105474,191.18,191.1,1.75105474]
[1761236898219,1.75105474,191.18,191.1,6.45925474]
[1761236898626,1.75105474,191.18,191.1,9.16925474]
[1761236899432,1.75105474,191.14,191.1,7.4182]
[1761236899731,1.75105474,191.16,191.1,2.71]
[1761236900326,1.75105474,191.16,191.1,7.4184]
[1761236903853,4.7062,191.2,191.1,7.4184]
[1761236903854,1.75105474,191.18,191.13,2.71]
[1761236904552,2.72105474,191.18,191.13,2.71]
[1761236905754,1.75105474,191.16,191.13,2.71]
[1761236906054,2.73105474,191.16,191.12,4.7078]
[1761236906240,1.75105474,191.14,191.12,4.7078]
[1761236906441,1.75105474,191.14,191.1,7.4584]
[1761236906651,2.73105474,191.14,191.1,2.75]
[1761236906849,1.75105474,191.12,191.06,2.75]
[1761236907553,1.75105474,191.12,191.06,7.4594]
[1761236907750,43.66,191.21,191.06,2.75]
[1761236907751,1.75105474,191.1,191.06,2.75]
[1761236908051,1.75105474,191.08,191.02,2.75]
[1761236908251,1.75105474,191.06,191.02,2.75]
[1761236908554,0.98,191.09,191.0,2.75]
[1761236908851,1.75105474,191.02,190.96,2.75]
[1761236909647,0.98,191.06,190.98,4.7113]
[1761236909648,1.75105474,191.0,190.98,4.7113]
[1761236910155,0.98,191.05,190.99,2.69]
[1761236910456,1.75105474,191.02,190.99,2.69]
[1761236910650,0.98,191.05,190.99,7.401]
[1761236912354,0.98,191.05,191.01,2.69]
[1761236912742,0.98,191.05,191.01,7.4005]
[1761236912943,5.00005293,191.11,191.02,2.69]
[1761236913654,5.00005293,191.15,191.02,2.69]
[1761236914043,0.98,191.14,191.02,2.69]
[1761236914548,4.02005293,191.16,191.0,2.69]
[1761236916060,4.02005293,191.16,191.1,2.69]
[1761236916456,0.98,191.18,191.1,2.69]
[1761236916653,4.02005293,191.2,191.1,2.69]
[1761236917158,0.98,191.22,191.15,4.707]
[1761236917847,0.98,191.22,191.17,4.7066]
[1761236918052,0.98,191.22,191.17,7.3966]
[1761236918747,4.02005293,191.25,191.2,4.7059]
[1761236918953,0.98,191.27,191.2,4.7059]
[1761236919459,0.98,191.27,191.22,4.7054]
[1761236919661,0.98,191.27,191.22,7.3954]
[1761236920052,0.98,191.27,191.19,4.706]
[1761236921858,0.98,191.27,191.19,7.396]
[1761236922756,5.6844,191.27,191.19,7.396]
[1761236923158,0.98,191.26,191.16,4.7069]
[1761236923353,0.98,191.24,191.16,4.7069]
[1761236923549,0.98,191.24,191.15,2.69]
[1761236923750,4.02005293,191.19,191.1,2.69]
[1761236923954,5.00005293,191.16,191.06,2.69]
[1761236924154,5.6874,191.14,191.06,2.69]
[1761236924565,0.98,191.13,191.06,2.69]
[1761236924956,5.00005293,191.12,191.05,4.7096]
[1761236925356,9.70805293,191.12,191.05,4.7096]
[1761236927561,0.98,191.12,191.05,7.3996]
[1761236927769,4.7075,191.14,191.06,2.69]
[1761236929170,5.6875,191.14,191.06,2.69]
[1761236929356,5.6875,191.14,191.07,5.55]
[1761236929863,0.98,191.14,191.07,5.55]
[1761236930267,0.98,191.14,191.07,8.24]
[1761236930461,0.98,191.14,191.08,7.3989]
[1761236930657,0.98,191.14,191.08,2.69]
[1761236930864,43.68,191.16,191.08,2.69]
[1761236931970,43.68,191.16,191.09,7.3985]
[1761236932268,43.68,191.16,191.09,2.69]
[1761236934072,43.68,191.16,191.12,2.69]
[1761236934961,0.98,191.18,191.07,5.55]
[1761236934962,49.3452,191.23,191.13,2.69]
[1761236935159,0.98,191.22,191.13,2.69]
[1761236935970,0.98,191.22,191.14,4.7073]
[1761236936567,0.98,191.22,191.16,7.3967]
[1761236936769,43.66,191.23,191.16,2.69]
[1761236936970,48.3648,191.25,191.16,2.69]
[1761236937170,0.98,191.23,191.16,2.69]
[1761236937484,0.98,191.23,191.1,2.69]
[1761236938174,0.98,191.23,191.15,4.707]
[1761236938675,4.7054,191.23,191.15,4.707]
[1761236938866,5.6854,191.23,191.15,4.707]
[1761236939372,0.98,191.21,191.13,7.3976]
[1761236939575,0.98,191.21,191.13,4.7076]
[1761236940577,0.98,191.18,191.11,4.7081]
[1761236941973,0.98,191.16,191.09,7.3686]
[1761236942578,43.66,191.17,191.1,4.7082]
[1761236942773,43.66,191.17,191.11,2.66]
[1761236943073,43.66,191.17,191.12,4.7078]
[1761236943281,43.66,191.17,191.13,2.66]
[1761236943883,44.64,191.17,191.13,2.66]
[1761236944076,44.64,191.17,191.12,4.7078]
[1761236944373,43.66,191.17,191.12,4.7078]
[1761236944576,0.98,191.16,191.12,4.7078]
[1761236945585,0.98,191.16,191.09,4.7085]
[1761236945778,0.98,191.16,191.07,5.55]
[1761236946272,5.6872,191.15,191.07,10.2591]
[1761236946473,0.98,191.14,191.07,5.55]
[1761236946673,0.98,191.13,191.07,5.55]
[1761236947276,6.60770054,191.14,191.07,5.55]
[1761236947277,5.6889,191.08,191.07,5.55]
[1761236947482,49.3889,191.08,191.07,5.55]
[1761236948789,44.68,191.08,191.07,5.55]
[1761236950190,44.68,191.08,191.07,0.0001]
[1761236950380,44.68,191.08,190.98,2.66]
[1761236950381,4.7094,191.06,190.98,2.66]
[1761236950583,5.6894,191.06,190.98,2.66]
[1761236952195,5.6894,191.06,190.98,7.3712]
[1761236952396,4.709,191.08,190.99,2.66]
[1761236952691,0.98,191.1,191.02,2.66]
[1761236952899,4.708,191.12,191.02,2.66]
[1761236953090,0.98,191.14,191.07,2.66]
[1761236953291,19.0,191.17,191.07,2.66]
[1761236954698,0.98,191.16,191.07,2.66]